lending/lending_fUSD_20250122
["ID","MTS","AMOUNT","RATE_DAILY","PERIOD"]
[350031253,1737581445640,-151.0,0.000215,2]
[350031254,1737581445649,-260.856524,0.000215,2]
[350031255,1737581445658,-260.856524,0.000215,2]
[350031256,1737581445668,-151.0,0.000215,2]
[350031257,1737581445677,-151.0,0.000215,2]
[350031258,1737581445687,-300.0,0.000215,7]
[350031260,1737581445696,-366.0,0.000215,2]
[350031261,1737581445706,-276.638576,0.000215,2]
[350031262,1737581445717,-745.0,0.000215,2]
[350031263,1737581445727,-466.235353,0.000215,2]
[350031264,1737581445737,-466.235353,0.000215,2]
[350031265,1737581445747,-723.0,0.000215,2]
[350031266,1737581445756,-505.9015117,0.00021506,2]
[350031267,1737581445766,-150.0,0.00021526,2]
[350031268,1737581445776,-251.68,0.00021553,2]
[350031269,1737581445785,-500.0,0.00021557,2]
[350031270,1737581445794,-500.0,0.00021557,2]
[350031271,1737581445803,-500.0,0.00021557,2]
[350031272,1737581445813,-500.0,0.00021557,2]
[350031273,1737581445822,-500.0,0.00021557,2]
[350031274,1737581445831,-822.89,0.00021557,2]
[350031275,1737581445840,-500.0,0.00021557,2]
[350031276,1737581445850,-500.0,0.00021557,2]
[350031277,1737581445859,-500.0,0.00021557,2]
[350031278,1737581445868,-500.0,0.00021557,2]
[350031279,1737581445877,-500.0,0.00021557,2]
[350031280,1737581445886,-500.0,0.00021557,2]
[350031281,1737581445895,-500.0,0.00021557,2]
[350031282,1737581445904,-500.0,0.00021557,2]
[350031283,1737581445914,-500.0,0.00021557,2]
[350031284,1737581445923,-500.0,0.00021557,2]
[350031285,1737581445932,-500.0,0.00021557,2]
[350031286,1737581445941,-548.03,0.00021557,2]
[350031287,1737581445950,-500.0,0.00021557,2]
[350031288,1737581445959,-500.0,0.00021557,2]
[350031289,1737581445969,-500.0,0.00021557,2]
[350031290,1737581445979,-500.0,0.00021557,2]
[350031291,1737581445988,-500.0,0.00021557,2]
[350031292,1737581445997,-500.0,0.00021557,2]
[350031293,1737581446006,-500.0,0.00021557,2]
[350031294,1737581446016,-500.0,0.00021557,2]
[350031295,1737581446025,-534.97,0.00021557,2]
[350031296,1737581446035,-500.0,0.00021557,2]
[350031297,1737581446044,-500.0,0.00021557,2]
[350031298,1737581446053,-500.0,0.00021557,2]
[350031299,1737581446062,-500.0,0.00021557,2]
[350031300,1737581446071,-500.0,0.00021557,2]
[350031301,1737581446080,-668.36,0.00021557,2]
[350031302,1737581446089,-527.8,0.00021557,2]
[350031303,1737581446100,-500.0,0.00021557,2]
[350031304,1737581446113,-539.2,0.00021557,2]
[350031305,1737581446122,-520.8,0.00021557,2]
[350031306,1737581446131,-500.0,0.00021557,2]
[350031307,1737581446140,-526.23313962,0.00021557,2]
[350031308,1737581446150,-500.0,0.00021557,2]
[350031309,1737581446159,-500.0,0.00021557,2]
[350031310,1737581446168,-500.0,0.00021557,2]
[350031312,1737581446178,-500.0,0.00021557,2]
[350031314,1737581446187,-500.0,0.00021557,2]
[350031316,1737581446196,-500.0,0.00021557,2]
[350031318,1737581446205,-260.856524,0.00021557,2]
[350031320,1737581446214,-500.0,0.00021557,2]
[350031322,1737581446224,-260.856524,0.00021557,2]
[350031323,1737581446233,-500.0,0.00021557,2]
[350031324,1737581446242,-1207.26,0.00021557,2]
[350031325,1737581446252,-695.88,0.00021557,2]
[350031326,1737581446262,-1097.38,0.00021557,2]
[350031327,1737581446271,-604.21,0.00021557,2]
[350031328,1737581446280,-638.89,0.00021557,2]
[350031329,1737581446290,-500.0,0.00021557,2]
[350031330,1737581446299,-500.0,0.00021557,2]
[350031331,1737581446308,-814.33,0.00021557,2]
[350031332,1737581446318,-1891.31,0.00021557,2]
[350031333,1737581446327,-619.31,0.00021557,2]
[350031334,1737581446336,-826.72,0.00021557,2]
[350031335,1737581446345,-548.78,0.00021557,2]
[350031336,1737581446354,-1374.39,0.00021557,2]
[350031337,1737581446363,-500.0,0.00021557,2]
[350031338,1737581446372,-2805.87,0.00021557,2]
[350031339,1737581446381,-500.0,0.00021557,2]
[350031340,1737581446391,-3912.0,0.00021557,2]
[350031341,1737581446555,-500.0,0.00021557,2]
[350031342,1737581446564,-1201.04,0.00021557,2]
[350031343,1737581446574,-500.0,0.00021557,2]
[350031344,1737581446584,-500.0,0.00021557,2]
[350031345,1737581446593,-1605.31,0.00021557,2]
[350031346,1737581446602,-500.0,0.00021557,2]
[350031347,1737581446612,-1138.5,0.00021557,2]
[350031348,1737581446621,-500.0,0.00021557,2]
[350031349,1737581446631,-500.0,0.00021557,2]
[350031350,1737581446640,-500.0,0.00021557,2]
[350031351,1737581446650,-781.21,0.00021557,2]
[350031352,1737581446659,-500.0,0.00021557,2]
[350031353,1737581446668,-500.0,0.00021557,2]
[350031354,1737581446677,-500.0,0.00021557,2]
[350031355,1737581446687,-1906.02,0.00021557,2]
[350031356,1737581446695,-500.0,0.00021557,2]
[350031357,1737581446705,-500.0,0.00021557,2]
[350031358,1737581446714,-823.19,0.00021557,2]
[350031359,1737581446723,-500.0,0.00021557,2]
[350031360,1737581446732,-500.0,0.00021557,2]
[350031361,1737581446742,-930.81,0.00021557,2]
[350031362,1737581446751,-500.0,0.00021557,2]
[350031363,1737581446760,-1283.67,0.00021557,2]
[350031364,1737581446770,-500.0,0.00021557,2]
[350031365,1737581446779,-500.0,0.00021557,2]
[350031366,1737581446788,-500.0,0.00021557,2]
[350031367,1737581446798,-500.0,0.00021557,2]
[350031368,1737581446808,-500.0,0.00021557,2]
[350031369,1737581446817,-500.0,0.00021558,2]
[350031370,1737581446826,-500.0,0.00021558,2]
[350031371,1737581446835,-500.0,0.00021558,2]
[350031372,1737581446844,-500.0,0.00021558,2]
[350031373,1737581446853,-500.0,0.00021558,2]
[350031374,1737581446863,-500.0,0.00021558,2]
[350031375,1737581446872,-500.0,0.00021558,2]
[350031376,1737581446881,-500.0,0.00021558,2]
[350031377,1737581446891,-500.0,0.00021558,2]
[350031378,1737581446900,-500.0,0.00021558,2]
[350031379,1737581446909,-500.0,0.00021558,2]
[350031380,1737581446919,-500.0,0.00021558,2]
[350031381,1737581446928,-566.54670418,0.00021558,2]
[350031382,1737581446937,-500.0,0.00021558,2]
[350031383,1737581446946,-500.0,0.00021558,2]
[350031384,1737581446956,-500.0,0.00021558,2]
[350031385,1737581446966,-500.0,0.00021558,2]
[350031386,1737581446977,-500.0,0.00021558,2]
[350031387,1737581446986,-500.0,0.00021558,2]
[350031388,1737581446996,-500.0,0.00021558,2]
[350031389,1737581447005,-500.0,0.00021558,2]
[350031390,1737581447015,-500.0,0.00021558,2]
[350031391,1737581447024,-500.0,0.00021558,2]
[350031392,1737581447033,-500.0,0.00021558,2]
[350031393,1737581447043,-500.0,0.00021558,2]
[350031394,1737581447051,-338.04731809,0.00021558,2]
[350031395,1737581447061,-151.0,0.00021558,2]
[350031396,1737581447071,-192.519835,0.00021558,2]
[350031397,1737581447080,-500.0,0.00021558,2]
[350031398,1737581447089,-152.977135,0.00021558,2]
[350031399,1737581447100,-151.0,0.00021558,2]
[350031400,1737581447113,-250.64299784,0.00021558,2]
[350031401,1737581447122,-1828.0,0.0002156,2]
[350031402,1737581447132,-150.0,0.00021565,2]
[350031403,1737581447143,-1897.0,0.00021566,2]
[350031404,1737581447152,-500.0,0.00021573,2]
[350031405,1737581447161,-541.57142317,0.00021573,2]
[350031406,1737581447171,-500.0,0.00021576,2]
[350031407,1737581447180,-150.0,0.00021597,2]
[350031408,1737581447190,-300.0,0.000216,7]
[350031409,1737581447199,-693.428498,0.00021643,2]
[350031410,1737581447209,-940.58,0.00021643,2]
[350031411,1737581447218,-557.66,0.00021643,2]
[350031412,1737581447229,-1994.51,0.00021643,2]
[350031413,1737581447239,-500.0,0.00021643,2]
[350031414,1737581447249,-377.67923962,0.00021643,2]
[350031415,1737581447260,-1283.03,0.00021643,2]
[350031416,1737581447269,-500.0,0.00021643,2]
[350031417,1737581447279,-558.645739,0.00021643,2]
[350031418,1737581447288,-802.43,0.00021643,2]
[350031419,1737581447298,-651.86,0.00021643,2]
[350031420,1737581447307,-942.87,0.00021643,2]
[350031421,1737581447317,-919.83,0.00021643,2]
[350031422,1737581447327,-1962.42,0.00021643,2]
[350031423,1737581447337,-1605.64,0.00021643,2]
[350031424,1737581447346,-636.16,0.00021643,2]
[350031425,1737581447355,-691.16,0.00021643,2]
[350031426,1737581447365,-1387.14,0.00021643,2]
[350031427,1737581447374,-554.87,0.00021643,2]
[350031428,1737581447384,-500.0,0.00021643,2]
[350031429,1737581447394,-2007.47,0.00021643,2]
[350031430,1737581447403,-1341.75,0.00021643,2]
[350031431,1737581447413,-1354.36,0.00021643,2]
[350031432,1737581447423,-2971.08,0.00021643,2]
[350031433,1737581447432,-1742.09,0.00021643,2]
[350031434,1737581447442,-1119.73,0.00021643,2]
[350031435,1737581447453,-1204.65,0.00021643,2]
[350031436,1737581447462,-650.44,0.00021643,2]
[350031437,1737581447473,-614.98,0.00021643,2]
[350031438,1737581447483,-2317.06,0.00021643,2]
[350031439,1737581447493,-973.62,0.00021643,2]
[350031440,1737581447503,-1928.25,0.00021643,2]
[350031441,1737581447512,-2400.8,0.00021643,2]
[350031442,1737581447522,-717.59,0.00021643,2]
[350031443,1737581447532,-500.0,0.00021643,2]
[350031444,1737581447542,-573.1,0.00021643,2]
[350031445,1737581447552,-956.11,0.00021643,2]
[350031446,1737581447562,-1303.18,0.00021643,2]
[350031447,1737581447571,-2308.39,0.00021643,2]
[350031448,1737581447581,-500.0,0.00021643,2]
[350031449,1737581447591,-2741.8,0.00021643,2]
[350031450,1737581447601,-500.0,0.00021643,2]
[350031451,1737581447611,-896.3,0.00021643,2]
[350031452,1737581447621,-815.95,0.00021643,2]
[350031453,1737581447630,-500.0,0.00021643,2]
[350031454,1737581447640,-2716.11,0.00021643,2]
[350031455,1737581447649,-150.0,0.0002166,2]
[350031456,1737581447659,-150.0,0.00021681,2]
[350031457,1737581447669,-150.0,0.00021681,2]
[350031458,1737581447679,-166.5,0.00021684,2]
[350031459,1737581447688,-300.0,0.000217,7]
[350031460,1737581447698,-150.0,0.000217,2]
[350031461,1737581447708,-22091.54082366,0.000217,2]
[350031462,1737581447718,-150.0,0.000217,2]
[350031463,1737581447728,-466.235353,0.000217,2]
[350031464,1737581447738,-466.235353,0.000217,2]
[350031465,1737581447748,-150.0,0.00021702,2]
[350031466,1737581447758,-150.0,0.00021728,2]
[350031467,1737581447767,-259.689979,0.0002173,2]
[350031468,1737581447776,-151.0,0.0002173,2]
[350031469,1737581447786,-151.0,0.0002173,2]
[350031470,1737581447795,-151.0,0.0002173,2]
[350031471,1737581447805,-232.995601,0.0002173,2]
[350031472,1737581447814,-232.995601,0.0002173,2]
[350031473,1737581447823,-151.0,0.0002173,2]
[350031474,1737581447833,-151.0,0.0002173,2]
[350031475,1737581447843,-629.54,0.0002173,2]
[350031476,1737581447852,-500.0,0.0002173,2]
[350031477,1737581447861,-541.63,0.0002173,2]
[350031478,1737581447870,-151.0,0.0002173,2]
[350031479,1737581447879,-648.64,0.0002173,2]
[350031480,1737581447889,-699.95,0.0002173,2]
[350031481,1737581447898,-890.66,0.0002173,2]
[350031482,1737581447907,-865.26,0.0002173,2]
[350031483,1737581447916,-2087.45,0.0002173,2]
[350031484,1737581447925,-1825.33,0.0002173,2]
[350031485,1737581447935,-942.09,0.0002173,2]
[350031486,1737581447944,-927.48,0.0002173,2]
[350031487,1737581447954,-1864.79,0.0002173,2]
[350031488,1737581447963,-500.0,0.0002173,2]
[350031489,1737581447973,-766.53,0.0002173,2]
[350031490,1737581447982,-1032.52,0.0002173,2]
[350031491,1737581447992,-1333.56,0.0002173,2]
[350031492,1737581448002,-500.0,0.0002173,2]
[350031493,1737581448011,-1000.0,0.0002173,2]
[350031494,1737581448020,-204.39125869,0.00021732,2]
[350031495,1737581448029,-500.0,0.00021732,2]
[350031496,1737581448039,-500.0,0.00021732,2]
[350031497,1737581448048,-500.0,0.00021732,2]
[350031498,1737581448058,-500.0,0.00021732,2]
[350031499,1737581448067,-500.0,0.00021732,2]
[350031500,1737581448077,-500.0,0.00021732,2]
[350031501,1737581448087,-500.0,0.00021732,2]
[350031502,1737581448096,-500.0,0.00021732,2]
[350031503,1737581448108,-500.0,0.00021732,2]
[350031504,1737581448117,-500.0,0.00021732,2]
[350031505,1737581448126,-500.0,0.00021732,2]
[350031506,1737581448136,-500.0,0.00021732,2]
[350031507,1737581448146,-500.0,0.00021732,2]
[350031508,1737581448156,-500.0,0.00021732,2]
[350031509,1737581448165,-500.0,0.00021732,2]
[350031510,1737581448175,-500.0,0.00021732,2]
[350031511,1737581448184,-500.0,0.00021732,2]
[350031512,1737581448193,-500.0,0.00021732,2]
[350031513,1737581448203,-500.0,0.00021732,2]
[350031514,1737581448213,-500.0,0.00021732,2]
[350031515,1737581448222,-547.57,0.00021732,2]
[350031516,1737581448232,-500.0,0.00021732,2]
[350031517,1737581448241,-500.0,0.00021732,2]
[350031518,1737581448251,-500.0,0.00021732,2]
[350031519,1737581448261,-500.0,0.00021732,2]
[350031520,1737581448271,-500.0,0.00021732,2]
[350031521,1737581448280,-500.0,0.00021732,2]
[350031522,1737581448290,-500.0,0.00021732,2]
[350031523,1737581448299,-500.0,0.00021732,2]
[350031524,1737581448310,-500.0,0.00021732,2]
[350031525,1737581448319,-500.0,0.00021732,2]
[350031526,1737581448329,-500.0,0.00021732,2]
[350031527,1737581448338,-500.0,0.00021732,2]
[350031528,1737581448347,-500.0,0.00021732,2]
[350031529,1737581448357,-500.0,0.00021732,2]
[350031530,1737581448366,-500.0,0.00021732,2]
[350031531,1737581448376,-500.0,0.00021732,2]
[350031532,1737581448385,-500.0,0.00021732,2]
[350031533,1737581448395,-500.0,0.00021732,2]
[350031534,1737581448404,-500.0,0.00021732,2]
[350031535,1737581448414,-500.0,0.00021732,2]
[350031536,1737581448423,-500.0,0.00021732,2]
[350031537,1737581448432,-500.0,0.00021732,2]
[350031538,1737581448442,-500.0,0.00021732,2]
[350031539,1737581448452,-309.91716349,0.00021732,2]
[350031540,1737581448461,-500.0,0.00021732,2]
[350031541,1737581448471,-500.0,0.00021732,2]
[350031542,1737581448481,-500.0,0.00021732,2]
[350031543,1737581448492,-500.0,0.00021732,2]
[350031544,1737581448502,-500.0,0.00021732,2]
[350031545,1737581448512,-500.0,0.00021732,2]
[350031546,1737581448521,-763.2,0.00021732,2]
[350031547,1737581448531,-500.0,0.00021732,2]
[350031548,1737581448545,-500.0,0.00021732,2]
[350031549,1737581448556,-500.0,0.00021732,2]
[350031550,1737581448566,-500.0,0.00021732,2]
[350031551,1737581448577,-540.58622942,0.00021732,2]
[350031552,1737581448587,-500.0,0.00021732,2]
[350031553,1737581448597,-500.0,0.00021733,2]
[350031554,1737581448607,-500.0,0.00021733,2]
[350031555,1737581448616,-500.0,0.00021733,2]
[350031556,1737581448626,-500.0,0.00021733,2]
[350031557,1737581448636,-500.0,0.00021733,2]
[350031558,1737581448646,-500.0,0.00021733,2]
[350031559,1737581448655,-500.0,0.00021733,2]
[350031560,1737581448664,-500.0,0.00021733,2]
[350031561,1737581448673,-500.0,0.00021733,2]
[350031562,1737581448683,-1736.67,0.00021733,2]
[350031563,1737581448692,-1971.68,0.00021733,2]
[350031564,1737581448702,-150.0,0.00021742,2]
[350031565,1737581448712,-170.4,0.00021743,2]
[350031566,1737581448721,-3000.0,0.0002175,2]
[350031567,1737581448731,-204.39125868,0.0002176,2]
[350031568,1737581448741,-150.0,0.00021765,2]
[350031569,1737581448750,-500.0,0.00021773,2]
[350031570,1737581448759,-500.0,0.00021773,2]
[350031571,1737581448768,-500.0,0.00021773,2]
[350031572,1737581448778,-500.0,0.00021773,2]
[350031573,1737581448787,-574.58995959,0.00021773,2]
[350031574,1737581448796,-500.0,0.00021773,2]
[350031575,1737581448806,-500.0,0.00021773,2]
[350031576,1737581448815,-500.0,0.00021773,2]
[350031577,1737581448825,-500.0,0.00021773,2]
[350031578,1737581448834,-500.0,0.00021773,2]
[350031579,1737581448843,-500.0,0.00021773,2]
[350031580,1737581448852,-500.0,0.00021773,2]
[350031581,1737581448862,-500.0,0.00021773,2]
[350031582,1737581448871,-500.0,0.00021773,2]
[350031583,1737581448881,-500.0,0.00021773,2]
[350031584,1737581448891,-500.0,0.00021773,2]
[350031585,1737581448900,-327.50616834,0.00021773,2]
[350031586,1737581448910,-500.0,0.00021773,2]
[350031587,1737581448919,-500.0,0.00021773,2]
[350031588,1737581448970,-500.0,0.00021773,2]
[350031589,1737581448981,-500.0,0.00021773,2]
[350031590,1737581448991,-566.20210403,0.00021773,2]
[350031591,1737581449001,-500.0,0.00021773,2]
[350031592,1737581449010,-508.97264046,0.00021773,2]
[350031593,1737581449019,-248.24377808,0.00021773,2]
[350031594,1737581449029,-500.0,0.00021773,2]
[350031595,1737581449038,-500.0,0.00021773,2]
[350031596,1737581449047,-500.0,0.00021773,2]
[350031597,1737581449057,-500.0,0.00021773,2]
[350031598,1737581449066,-500.0,0.00021773,2]
[350031599,1737581449075,-500.0,0.00021773,2]
[350031600,1737581449084,-482.92504284,0.00021773,2]
[350031601,1737581449101,-17.07495716,0.00021773,2]
[350031602,1737581449113,-417.02999382,0.00021773,2]
[350031603,1737581449125,-82.97000618,0.00021773,2]
[350031604,1737581449134,-500.0,0.00021773,2]
[350031605,1737581449143,-500.0,0.00021773,2]
[350031606,1737581449153,-500.0,0.00021773,2]
[350031607,1737581449162,-340.74590459,0.00021773,2]
[350031608,1737581449171,-516.56849469,0.00021773,2]
[350031609,1737581449181,-500.0,0.00021773,2]
[350031610,1737581449190,-500.0,0.00021773,2]
[350031611,1737581449199,-500.0,0.00021773,2]
[350031612,1737581449208,-500.0,0.00021773,2]
[350031613,1737581449219,-500.0,0.00021773,2]
[350031614,1737581449229,-500.0,0.00021773,2]
[350031615,1737581449239,-500.0,0.00021773,2]
[350031616,1737581449248,-500.0,0.00021773,2]
[350031617,1737581449258,-500.0,0.00021773,2]
[350031618,1737581449268,-500.0,0.00021773,2]
[350031619,1737581449278,-500.0,0.00021773,2]
[350031620,1737581449287,-500.0,0.00021773,2]
[350031621,1737581449297,-510.07478074,0.00021773,2]
[350031622,1737581449306,-500.0,0.00021773,2]
[350031623,1737581449316,-500.0,0.00021773,2]
[350031624,1737581449325,-500.0,0.00021773,2]
[350031625,1737581449334,-500.0,0.00021773,2]
[350031626,1737581449343,-500.0,0.00021773,2]
[350031627,1737581449353,-500.0,0.00021773,2]
[350031628,1737581449362,-500.0,0.00021773,2]
[350031629,1737581449372,-500.0,0.00021773,2]
[350031630,1737581449382,-500.0,0.00021773,2]
[350031631,1737581449391,-1828.0,0.0002178,2]
[350031632,1737581449405,-150.0,0.00021784,2]
[350031633,1737581449415,-150.66023569,0.00021786,2]
[350031634,1737581449425,-204.39125868,0.00021788,2]
[350031635,1737581449435,-785.0,0.000218,7]
[350031636,1737581449445,-13248.87834026,0.000218,2]
[350031637,1737581449455,-1924.98809946,0.000218,3]
[350031638,1737581449470,-151.0,0.000218,2]
[350031639,1737581449480,-151.0,0.000218,2]
[350031640,1737581449490,-27359.69276598,0.000218,2]
[350031641,1737581449506,-1071.45762307,0.000218,2]
[350031642,1737581449516,-260.856524,0.000218,2]
[350031643,1737581449526,-260.856524,0.000218,2]
[350031644,1737581449536,-741.32794093,0.00021808,2]
[350031645,1737581449675,-252.93809162,0.00021808,2]
[350031646,1737581449712,-319.710001,0.00019178,2]
[350031647,1737581449942,-180.289999,0.00019178,2]
[350031648,1737581449952,-304.68,0.00019452,2]
[350031649,1737581449962,-326.90520789,0.00021306,2]
[350031650,1737581449971,-5.73396745,0.00021808,2]
[350031651,1737581449983,-204.39125868,0.00021816,2]
[350031652,1737581449993,-150.0,0.00021818,2]
[350031653,1737581450003,-384.54956698,0.00021823,2]
[350031654,1737581450014,-115.45043302,0.00021823,2]
[350031655,1737581450024,-1000.0,0.0002183,2]
[350031656,1737581450034,-151.0,0.00021831,2]
[350031657,1737581450044,-500.0,0.00021831,2]
[350031658,1737581450053,-500.0,0.00021831,2]
[350031659,1737581450063,-500.0,0.00021831,2]
[350031660,1737581450073,-500.0,0.00021831,2]
[350031661,1737581450082,-500.0,0.00021831,2]
[350031662,1737581450091,-822.89,0.00021831,2]
[350031663,1737581450101,-500.0,0.00021831,2]
[350031664,1737581450114,-500.0,0.00021831,2]
[350031665,1737581450123,-500.0,0.00021831,2]
[350031666,1737581450133,-151.0,0.00021831,2]
[350031667,1737581450143,-500.0,0.00021831,2]
[350031668,1737581450152,-500.0,0.00021831,2]
[350031669,1737581450161,-500.0,0.00021831,2]
[350031670,1737581450171,-500.0,0.00021831,2]
[350031671,1737581450183,-500.0,0.00021831,2]
[350031672,1737581450194,-500.0,0.00021831,2]
[350031673,1737581450204,-500.0,0.00021831,2]
[350031674,1737581450214,-500.0,0.00021831,2]
[350031675,1737581450224,-548.03,0.00021831,2]
[350031676,1737581450234,-500.0,0.00021831,2]
[350031677,1737581450244,-500.0,0.00021831,2]
[350031678,1737581450254,-500.0,0.00021831,2]
[350031679,1737581450264,-500.0,0.00021831,2]
[350031680,1737581450273,-500.0,0.00021831,2]
[350031681,1737581450284,-500.0,0.00021831,2]
[350031682,1737581450295,-500.0,0.00021831,2]
[350031683,1737581450305,-500.0,0.00021831,2]
[350031684,1737581450315,-534.97,0.00021831,2]
[350031685,1737581450325,-500.0,0.00021831,2]
[350031686,1737581450334,-500.0,0.00021831,2]
[350031687,1737581450344,-500.0,0.00021831,2]
[350031688,1737581450354,-500.0,0.00021831,2]
[350031689,1737581450364,-668.36,0.00021831,2]
[350031690,1737581450373,-527.8,0.00021831,2]
[350031691,1737581450383,-500.0,0.00021831,2]
[350031692,1737581450393,-539.2,0.00021831,2]
[350031693,1737581450403,-520.8,0.00021831,2]
[350031694,1737581450413,-500.0,0.00021831,2]
[350031695,1737581450422,-500.0,0.00021831,2]
[350031696,1737581450432,-500.0,0.00021831,2]
[350031697,1737581450441,-500.0,0.00021831,2]
[350031698,1737581450451,-500.0,0.00021831,2]
[350031699,1737581450461,-500.0,0.00021831,2]
[350031700,1737581450470,-500.0,0.00021831,2]
[350031701,1737581450480,-500.0,0.00021831,2]
[350031702,1737581450490,-576.41578942,0.00021831,2]
[350031703,1737581450500,-1207.26,0.00021831,2]
[350031704,1737581450511,-695.88,0.00021831,2]
[350031705,1737581450520,-1097.38,0.00021831,2]
[350031706,1737581450530,-604.21,0.00021831,2]
[350031707,1737581450540,-638.89,0.00021831,2]
[350031708,1737581450550,-500.0,0.00021831,2]
[350031709,1737581450560,-500.0,0.00021831,2]
[350031710,1737581450569,-814.33,0.00021831,2]
[350031711,1737581450579,-1891.31,0.00021831,2]
[350031712,1737581450589,-619.31,0.00021831,2]
[350031713,1737581450598,-826.72,0.00021831,2]
[350031714,1737581450608,-548.78,0.00021831,2]
[350031715,1737581450618,-1374.39,0.00021831,2]
[350031716,1737581450629,-500.0,0.00021831,2]
[350031717,1737581450640,-2805.87,0.00021831,2]
[350031718,1737581450652,-500.0,0.00021831,2]
[350031719,1737581450663,-3912.0,0.00021831,2]
[350031720,1737581450673,-500.0,0.00021831,2]
[350031721,1737581450682,-1201.04,0.00021831,2]
[350031722,1737581450692,-500.0,0.00021831,2]
[350031723,1737581450708,-500.0,0.00021831,2]
[350031724,1737581450720,-1605.31,0.00021831,2]
[350031725,1737581450730,-500.0,0.00021831,2]
[350031726,1737581450740,-1138.5,0.00021831,2]
[350031727,1737581450749,-500.0,0.00021831,2]
[350031728,1737581450760,-500.0,0.00021831,2]
[350031729,1737581450769,-500.0,0.00021831,2]
[350031730,1737581450787,-781.21,0.00021831,2]
[350031731,1737581450803,-500.0,0.00021831,2]
[350031732,1737581450813,-500.0,0.00021831,2]
[350031733,1737581450823,-500.0,0.00021831,2]
[350031734,1737581450832,-1906.02,0.00021831,2]
[350031735,1737581450842,-500.0,0.00021831,2]
[350031736,1737581450851,-500.0,0.00021831,2]
[350031737,1737581450861,-823.19,0.00021831,2]
[350031738,1737581450871,-500.0,0.00021831,2]
[350031739,1737581450881,-500.0,0.00021831,2]
[350031740,1737581450894,-930.81,0.00021831,2]
[350031741,1737581450904,-500.0,0.00021831,2]
[350031742,1737581450914,-1283.67,0.00021831,2]
[350031743,1737581450924,-500.0,0.00021831,2]
[350031744,1737581450934,-500.0,0.00021831,2]
[350031745,1737581450944,-500.0,0.00021831,2]
[350031746,1737581450953,-500.0,0.00021831,2]
[350031747,1737581450963,-500.0,0.00021831,2]
[350031748,1737581450972,-500.0,0.00021832,2]
[350031749,1737581450984,-500.0,0.00021832,2]
[350031750,1737581450994,-379.37351284,0.00021832,2]
[350031751,1737581451004,-500.0,0.00021832,2]
[350031752,1737581451014,-500.0,0.00021832,2]
[350031753,1737581451023,-500.0,0.00021832,2]
[350031754,1737581451033,-151.0,0.00021832,2]
[350031755,1737581451043,-151.0,0.00021832,2]
[350031756,1737581451052,-500.0,0.00021832,2]
[350031757,1737581451062,-500.0,0.00021832,2]
[350031758,1737581451071,-151.0,0.00021832,2]
[350031759,1737581451080,-500.0,0.00021832,2]